Workbook

Sheet 0% 5years
C1: Payment Sheet | F1: 5 Years
C3: Unit Number
C4: Price | D4: B8 | E4: 2000000
C5: Payment | D5: 0.15 | E5: =D5*E4 -> 300000
C6: Discount | D6: 0.15 | E6: 0
C7: Parking | E7: 100000
C8: Club House | E8: 80000
C9: Final Price | E9: =E4-E6+E7+E8 -> 2180000
C10: Maintenance | D10: 0.08 | E10: =(E4-E6)*D10 -> 160000 | F10: 2022-06-30
C11: Contracting Date: | E11: =TODAY() -> 2020-07-13
B13: Year | C13: Checks Details | E13: Check Dates M/Y | F13: Amount EGP
B14: 1 | C14: Check 1 | E14: =EDATE(E11,0) -> 2020-07-13 | F14: =($E$4-$E$5-$E$6+$E$7+$E$8)/20 -> 94000
C15: Check 2 | E15: =EDATE(E14,3) -> 2020-10-13 | F15: =($E$4-$E$5-$E$6+$E$7+$E$8)/20 -> 94000
C16: Check 3 | E16: 2021-01-13 | F16: 94000
C17: Check 4 | E17: 2021-04-13 | F17: 94000
B18: 2 | C18: Check 5 | E18: 2021-07-13 | F18: 94000
C19: Check 6 | E19: 2021-10-13 | F19: 94000
C20: Check 7 | E20: 2022-01-13 | F20: 94000
C21: Check 8 | E21: 2022-04-13 | F21: 94000
B22: 3 | C22: Check 9 | E22: 2022-07-13 | F22: 94000
C23: Check 10 | E23: 2022-10-13 | F23: 94000
C24: Check 11 | E24: 2023-01-13 | F24: 94000
C25: Check 12 | E25: 2023-04-13 | F25: 94000
B26: 4 | C26: Check 13 | E26: 2023-07-13 | F26: 94000
C27: Check 14 | E27: 2023-10-13 | F27: 94000
C28: Check 15 | E28: 2024-01-13 | F28: 94000
C29: Check 16 | E29: 2024-04-13 | F29: 94000
B30: 5 | C30: Check 17 | E30: 2024-07-13 | F30: 94000
C31: Check 18 | E31: 2024-10-13 | F31: 94000
C32: Check 19 | E32: 2025-01-13 | F32: 94000
C33: Check 20 | E33: 2025-04-13 | F33: 94000 | G33: =SUM(F14:F33) -> 1880000
F35: Date | G35: =TODAY() -> 2020-07-13

Sheet 6% 6years
C1: Payment Sheet | F1: 6 Years
C3: Unit Number
C4: Price | E4: 2000000
C5: Down Payment | D5: =E5/E4 -> 0.1 | E5: 200000
C6: Annual | D6: 0.06 | E6: 0 | F6: 2020-11-11
C7: Parking | E7: 0 | F7: Free
C8: Club House | E8: 0 | F8: Free
C9: Final Price | E9: =E4+E7+E8 -> 2000000
C10: Maintenance | D10: 0.08 | E10: =E4*D10 -> 160000 | F10: 2022-06-30
C11: Contracting Date: | E11: =TODAY() -> 2020-07-13
B13: Year | C13: Checks Details | E13: Check Dates M/Y | F13: Amount EGP
B14: 1 | C14: Check 1 | E14: =EDATE(E11,3) -> 2020-10-13 | F14: =((E$4-E$5-E$6+E$7+E$8)/24) -> 75000
C15: Check 2 | E15: =EDATE(E14,3) -> 2021-01-13 | F15: 75000
C16: Check 3 | E16: 2021-04-13 | F16: 75000
C17: Check 4 | E17: 2021-07-13 | F17: 75000
B18: 2 | C18: Check 5 | E18: 2021-10-13 | F18: 75000
C19: Check 6 | E19: 2022-01-13 | F19: 75000
C20: Check 7 | E20: 2022-04-13 | F20: 75000
C21: Check 8 | E21: 2022-07-13 | F21: 75000
B22: 3 | C22: Check 9 | E22: 2022-10-13 | F22: 75000
C23: Check 10 | E23: 2023-01-13 | F23: 75000
C24: Check 11 | E24: 2023-04-13 | F24: 75000
C25: Check 12 | E25: 2023-07-13 | F25: 75000
B26: 4 | C26: Check 13 | E26: 2023-10-13 | F26: 75000
C27: Check 14 | E27: 2024-01-13 | F27: 75000
C28: Check 15 | E28: 2024-04-13 | F28: 75000
C29: Check 16 | E29: 2024-07-13 | F29: 75000
B30: 5 | C30: Check 17 | E30: 2024-10-13 | F30: 75000
C31: Check 18 | E31: 2025-01-13 | F31: 75000
C32: Check 19 | E32: 2025-04-13 | F32: 75000
C33: Check 20 | E33: 2025-07-13 | F33: 75000
B34: 6 | C34: Check 21 | E34: =EDATE(E33,3) -> 2025-10-13 | F34: 75000
C35: Check 22 | E35: =EDATE(E34,3) -> 2026-01-13 | F35: 75000
C36: Check 23 | E36: =EDATE(E35,3) -> 2026-04-13 | F36: 75000
C37: Check 24 | E37: =EDATE(E36,3) -> 2026-07-13 | F37: 75000 | G37: =SUM(F14:F37) -> 1800000
F39: Date | G39: =TODAY() -> 2020-07-13

Sheet 10% 7years
C1: Payment Sheet | F1: 7 Years
C3: Unit Number
C4: Price | E4: 2000000
C5: Down Payment | D5: 0.1 | E5: =E4*D5 -> 200000
C6: Annual | D6: 0.05 | E6: =E4*D6 -> 100000 | F6: 2020-12-01
C7: Annual | D7: 0.05 | E7: =E4*D7 -> 100000 | F7: 2021-12-01
C8: Parking | E8: 80000
C9: Club House | E9: 80000
C10: Final Price | E10: =E4+E8+E9 -> 2160000
C11: Maintenance | D11: 0.08 | E11: =E4*D11 -> 160000 | F11: 2022-06-30
C12: Contracting Date: | E12: =TODAY() -> 2020-07-13
B14: Year | C14: Checks Details | E14: Check Dates M/Y | F14: Amount EGP
B15: 1 | C15: Check 1 | E15: =EDATE(E12,3) -> 2020-10-13 | F15: =((E$4-E$5-E$6-E$7+E$8+E$9)/28) -> 62857.14286
C16: Check 2 | E16: =EDATE(E15,3) -> 2021-01-13 | F16: =((E$4-E$5-E$6-E$7+E$8+E$9)/28) -> 62857.14286
C17: Check 3 | E17: 2021-04-13 | F17: 62857.14286
C18: Check 4 | E18: 2021-07-13 | F18: 62857.14286
B19: 2 | C19: Check 5 | E19: 2021-10-13 | F19: 62857.14286
C20: Check 6 | E20: 2022-01-13 | F20: 62857.14286
C21: Check 7 | E21: 2022-04-13 | F21: 62857.14286
C22: Check 8 | E22: 2022-07-13 | F22: 62857.14286
B23: 3 | C23: Check 9 | E23: 2022-10-13 | F23: 62857.14286
C24: Check 10 | E24: 2023-01-13 | F24: 62857.14286
C25: Check 11 | E25: 2023-04-13 | F25: 62857.14286
C26: Check 12 | E26: 2023-07-13 | F26: 62857.14286
B27: 4 | C27: Check 13 | E27: 2023-10-13 | F27: 62857.14286
C28: Check 14 | E28: 2024-01-13 | F28: 62857.14286
C29: Check 15 | E29: 2024-04-13 | F29: 62857.14286
C30: Check 16 | E30: 2024-07-13 | F30: 62857.14286
B31: 5 | C31: Check 17 | E31: 2024-10-13 | F31: 62857.14286
C32: Check 18 | E32: 2025-01-13 | F32: 62857.14286
C33: Check 19 | E33: 2025-04-13 | F33: 62857.14286
C34: Check 20 | E34: 2025-07-13 | F34: 62857.14286
B35: 6 | C35: Check 21 | E35: =EDATE(E34,3) -> 2025-10-13 | F35: 62857.14286
C36: Check 22 | E36: 2026-01-13 | F36: 62857.14286
C37: Check 23 | E37: 2026-04-13 | F37: 62857.14286
C38: Check 24 | E38: 2026-07-13 | F38: 62857.14286
B39: 7 | C39: Check 25 | E39: 2026-10-13 | F39: 62857.14286
C40: Check 26 | E40: 2027-01-13 | F40: 62857.14286
C41: Check 27 | E41: 2027-04-13 | F41: 62857.14286
C42: Check 28 | E42: 2027-07-13 | F42: 62857.14286 | G42: =SUM(F15:F42) -> 1760000
F44: Date | G44: =TODAY() -> 2020-07-13

Sheet 15% 8years
C1: Payment Sheet | F1: 8 Years
C3: Unit Number
C4: Price | E4: 2000000
C5: Down Payment | D5: 0.15 | E5: 150000
C6: Annual | D6: 0.05 | E6: 200000 | F6: 2022-03-22
C7: Annual | D7: 0.05 | E7: 0
C8: Annual | D8: 0.05 | E8: 0
C9: Parking | E9: 80000
C10: Club House | E10: 0 | F10: FREE
C11: Final Price | E11: =E4+E9+E10 -> 2080000
C12: Maintenance | D12: 0.08 | E12: =E4*D12 -> 160000 | F12: 2022-06-30
C13: Contracting Date: | E13: =TODAY() -> 2020-07-13
B15: Year | C15: Checks Details | E15: Check Dates M/Y | F15: Amount EGP
B16: 1 | C16: Check 1 | E16: =EDATE(E13,3) -> 2020-10-13 | F16: =((E$4-E$5-E$6-E$7-E$8+E$9+E$10)/30) -> 57666.66667
C17: Check 2 | E17: =EDATE(E16,3) -> 2021-01-13 | F17: =((E$4-E$5-E$6-E$7-E$8+E$9+E$10)/30) -> 57666.66667
C18: Check 3 | E18: 2021-04-13 | F18: 57666.66667
C19: Check 4 | E19: 2021-07-13 | F19: 57666.66667
B20: 2 | C20: Check 5 | E20: 2021-10-13 | F20: 57666.66667
C21: Check 6 | E21: 2022-01-13 | F21: 57666.66667
C22: Check 7 | E22: 2022-04-13 | F22: 57666.66667
C23: Check 8 | E23: 2022-07-13 | F23: 57666.66667
B24: 3 | C24: Check 9 | E24: 2022-10-13 | F24: 57666.66667
C25: Check 10 | E25: 2023-01-13 | F25: 57666.66667
C26: Check 11 | E26: 2023-04-13 | F26: 57666.66667
C27: Check 12 | E27: 2023-07-13 | F27: 57666.66667
B28: 4 | C28: Check 13 | E28: 2023-10-13 | F28: 57666.66667
C29: Check 14 | E29: 2024-01-13 | F29: 57666.66667
C30: Check 15 | E30: 2024-04-13 | F30: 57666.66667
C31: Check 16 | E31: 2024-07-13 | F31: 57666.66667
B32: 5 | C32: Check 17 | E32: =EDATE(E31,3) -> 2024-10-13 | F32: 57666.66667
C33: Check 18 | E33: 2025-01-13 | F33: 57666.66667
C34: Check 19 | E34: 2025-04-13 | F34: 57666.66667
C35: Check 20 | E35: 2025-07-13 | F35: 57666.66667
B36: 6 | C36: Check 21 | E36: 2025-10-13 | F36: 57666.66667
C37: Check 22 | E37: 2026-01-13 | F37: 57666.66667
C38: Check 23 | E38: 2026-04-13 | F38: 57666.66667
C39: Check 24 | E39: 2026-07-13 | F39: 57666.66667
B40: 7 | C40: Check 25 | E40: 2026-10-13 | F40: 57666.66667
C41: Check 26 | E41: 2027-01-13 | F41: 57666.66667
C42: Check 27 | E42: 2027-04-13 | F42: 57666.66667
C43: Check 28 | E43: 2027-07-13 | F43: 57666.66667
B44: 8 | C44: Check 29 | E44: 2027-10-13 | F44: 57666.66667
C45: Check 30 | E45: 2028-01-13 | F45: 57666.66667
C46: Check 31 | E46: 2028-04-13 | F46: 57666.66667
C47: Check 32 | E47: 2028-07-13 | F47: 57666.66667 | G47: =SUM(F16:F47) -> 1845333.333

Sheet Price List
A1: Unit Number | B1: Price | C1: Unit Area
A2: A | B2: 1000000 | C2: 100M
A3: B | B3: 2000000 | C3: 150M
A4: C | B4: 3000000 | C4: 200M
A5: D | B5: 4000000 | C5: 190M
A6: E | B6: 5000000 | C6: 170M
A7: F | B7: 6000000 | C7: 290M
A8: G | B8: 7000000 | C8: 300M

Sheet المطلوب فى الشيت
D3: فى الشيت المرفق قائمة اسعار ( قيمة الوحده - السعر- المساحة ) ويوجد عدد 4 طرق لتقسيط قيمة الوحدة ونسبة مقدم السداد لكل طريقة تم عميل عدد 2 يوزر فورم الاولى شاشة بداية / والثانية شاشة الادخالات المطلوب * 1- تفعيل شاشة اليوزر فورم الاولى والثانية 2- فى رقم الوحدة و قيمة والوحده والمساحة يتم ادراجها تلقائيا فى الليست بوكس بطريقة تلقائية بمجرد كتابة رقم الوحده 3- يتم احتساب القيمة تلقائيا فى مربع الاقساط تلقائيا كل قسط وتاريخ القسط و المبلغ بناء على الخيار ( طريقة السداد وطريقة الاقساط ) كما هو فى شيت الاكسل المرفق للاربع طرق 4- يتم احتساب الصيانة تلقائيا بنسبة % وليكن 8% ولكم جزيل الشكر والاحترام والعرفان
